fUST/lending_fUST_20250628
["ID","MTS","AMOUNT","RATE_DAILY","PERIOD"]
[368218651,1751064638495,-460.0,0.00019178,2]
[368218652,1751064638506,-460.0,0.00019178,2]
[368218653,1751064638516,-460.0,0.00019178,2]
[368218654,1751064638525,-460.0,0.00019178,2]
[368218655,1751064638535,-406.81670028,0.00019178,2]
[368218656,1751064638544,-460.0,0.00019178,2]
[368218657,1751064638553,-460.0,0.00019178,2]
[368218658,1751064638562,-460.0,0.00019178,2]
[368218659,1751064638571,-161.90401864,0.00019178,2]
[368218660,1751064638580,-364.55914982,0.00019178,2]
[368218661,1751064638592,-460.0,0.00019178,2]
[368218662,1751064638603,-460.0,0.00019178,2]
[368218663,1751064638613,-460.0,0.00019178,2]
[368218664,1751064638622,-460.0,0.00019178,2]
[368218665,1751064638632,-443.92,0.00019178,2]
[368218666,1751064638641,-460.0,0.00019178,2]
[368218667,1751064638650,-460.0,0.00019178,2]
[368218668,1751064638659,-460.0,0.00019178,2]
[368218669,1751064638668,-460.0,0.00019178,2]
[368218670,1751064638678,-460.0,0.00019178,2]
[368218671,1751064638687,-460.0,0.00019178,2]
[368218672,1751064638696,-460.0,0.00019178,2]
[368218673,1751064638705,-460.0,0.00019178,2]
[368218674,1751064638713,-460.0,0.00019178,2]
[368218675,1751064638722,-447.70926067,0.00019178,2]
[368218676,1751064638731,-460.0,0.00019178,2]
[368218677,1751064638741,-460.0,0.00019178,2]
[368218678,1751064638751,-390.62502656,0.00019178,2]
[368218679,1751064638760,-460.0,0.00019178,2]
[368218680,1751064638770,-460.0,0.00019178,2]
[368218681,1751064638779,-460.0,0.00019178,2]
[368218682,1751064638789,-460.0,0.00019178,2]
[368218683,1751064638799,-460.0,0.00019178,2]
[368218684,1751064638808,-460.0,0.00019178,2]
[368218685,1751064638818,-460.0,0.00019178,2]
[368218686,1751064638828,-460.0,0.00019178,2]
[368218687,1751064638838,-460.0,0.00019178,2]
[368218688,1751064638847,-864.54,0.00019178,2]
[368218689,1751064638858,-460.0,0.00019178,2]
[368218690,1751064638867,-460.0,0.00019178,2]
[368218691,1751064638877,-460.0,0.00019178,2]
[368218692,1751064638886,-460.0,0.00019178,2]
[368218693,1751064638896,-460.0,0.00019178,2]
[368218694,1751064638905,-391.96594338,0.00019178,2]
[368218695,1751064638916,-460.0,0.00019178,2]
[368218696,1751064638925,-462.83958345,0.00019178,2]
[368218697,1751064638934,-460.0,0.00019178,2]
[368218698,1751064638944,-525.94,0.00019178,2]
[368218699,1751064638953,-460.0,0.00019178,2]
[368218700,1751064638962,-460.0,0.00019178,2]
[368218701,1751064638971,-460.0,0.00019178,2]
[368218702,1751064638982,-460.0,0.00019178,2]
[368218703,1751064638992,-460.0,0.00019178,2]
[368218704,1751064639001,-460.0,0.00019178,2]
[368218705,1751064639011,-460.0,0.00019178,2]
[368218706,1751064639020,-460.0,0.00019178,2]
[368218707,1751064639031,-460.0,0.00019178,2]
[368218708,1751064639040,-460.0,0.00019178,2]
[368218709,1751064639050,-460.0,0.00019178,2]
[368218710,1751064639059,-460.0,0.00019178,2]
[368218711,1751064639069,-460.0,0.00019178,2]
[368218712,1751064639079,-460.0,0.00019178,2]
[368218713,1751064639088,-460.0,0.00019178,2]
[368218714,1751064639097,-460.0,0.00019178,2]
[368218715,1751064639106,-460.0,0.00019178,2]
[368218716,1751064639115,-460.0,0.00019178,2]
[368218717,1751064639125,-460.0,0.00019178,2]
[368218718,1751064639134,-460.0,0.00019178,2]
[368218719,1751064639143,-460.0,0.00019178,2]
[368218720,1751064639153,-748.87,0.00019178,2]
[368218721,1751064639162,-460.0,0.00019178,2]
[368218722,1751064639171,-460.0,0.00019178,2]
[368218723,1751064639180,-460.0,0.00019178,2]
[368218724,1751064639191,-460.0,0.00019178,2]
[368218725,1751064639199,-460.0,0.00019178,2]
[368218726,1751064639210,-460.0,0.00019178,2]
[368218727,1751064639220,-460.0,0.00019178,2]
[368218728,1751064639229,-460.0,0.00019178,2]
[368218729,1751064639239,-495.05,0.00019178,2]
[368218730,1751064639248,-460.0,0.00019178,2]
[368218731,1751064639258,-460.0,0.00019178,2]
[368218732,1751064639268,-460.0,0.00019178,2]
[368218733,1751064639278,-460.0,0.00019178,2]
[368218734,1751064639288,-460.0,0.00019178,2]
[368218735,1751064639298,-460.0,0.00019178,2]
[368218736,1751064639307,-460.0,0.00019178,2]
[368218737,1751064639318,-460.0,0.00019178,2]
[368218738,1751064639328,-460.0,0.00019178,2]
[368218740,1751064639339,-460.0,0.00019178,2]
[368218741,1751064639349,-460.0,0.00019178,2]
[368218742,1751064639359,-280.19785712,0.00019178,2]
[368218743,1751064639368,-460.0,0.00019178,2]
[368218744,1751064639379,-460.0,0.00019178,2]
[368218745,1751064639389,-460.0,0.00019178,2]
[368218746,1751064639400,-460.0,0.00019178,2]
[368218747,1751064639410,-460.0,0.00019178,2]
[368218748,1751064639422,-460.0,0.00019178,2]
[368218749,1751064639432,-460.0,0.00019178,2]
[368218750,1751064639442,-460.0,0.00019178,2]
[368218751,1751064639454,-460.0,0.00019178,2]
[368218752,1751064639465,-460.0,0.00019178,2]
[368218753,1751064639474,-460.0,0.00019178,2]
[368218754,1751064639484,-460.0,0.00019178,2]
[368218755,1751064639502,-460.0,0.00019178,2]
[368218756,1751064639514,-460.0,0.00019178,2]
[368218757,1751064639524,-460.0,0.00019178,2]
[368218759,1751064639535,-460.0,0.00019178,2]
[368218761,1751064639545,-460.0,0.00019178,2]
[368218762,1751064639554,-460.0,0.00019178,2]
[368218763,1751064639564,-460.0,0.00019178,2]
[368218764,1751064639574,-1035.6,0.00019178,2]
[368218765,1751064639584,-2171.83,0.00019178,2]
[368218766,1751064639595,-460.0,0.00019178,2]
[368218767,1751064639605,-460.0,0.00019178,2]
[368218768,1751064639614,-460.0,0.00019178,2]
[368218769,1751064639624,-460.0,0.00019178,2]
[368218770,1751064639635,-460.0,0.00019178,2]
[368218771,1751064639646,-1424.5,0.00019178,2]
[368218772,1751064639657,-460.0,0.00019178,2]
[368218773,1751064639667,-562.40738502,0.00019178,2]
[368218774,1751064639677,-753.26,0.00019178,2]
[368218775,1751064639686,-460.0,0.00019178,2]
[368218776,1751064639696,-460.0,0.00019178,2]
[368218777,1751064639706,-460.0,0.00019178,2]
[368218778,1751064639716,-556.65,0.00019178,2]
[368218779,1751064639725,-460.0,0.00019178,2]
[368218780,1751064639735,-447.27166971,0.00019178,2]
[368218781,1751064639744,-541.17,0.00019178,2]
[368218782,1751064639754,-563.13,0.00019178,2]
[368218783,1751064639764,-460.0,0.00019178,2]
[368218784,1751064639774,-460.0,0.00019178,2]
[368218786,1751064639784,-460.0,0.00019178,2]
[368218788,1751064639794,-766.03,0.00019178,2]
[368218790,1751064639804,-460.0,0.00019178,2]
[368218792,1751064639814,-520.65,0.00019178,2]
[368218794,1751064639824,-460.0,0.00019178,2]
[368218796,1751064639834,-460.0,0.00019178,2]
[368218798,1751064639844,-562.4,0.00019178,2]
[368218800,1751064639853,-460.0,0.00019178,2]
[368218802,1751064639863,-949.08,0.00019178,2]
[368218804,1751064639873,-460.0,0.00019178,2]
[368218806,1751064639883,-2997.11,0.00019178,2]
[368218808,1751064639893,-708.91,0.00019178,2]
[368218811,1751064639903,-460.0,0.00019178,2]
[368218812,1751064639913,-460.0,0.00019178,2]
[368218814,1751064639923,-460.0,0.00019178,2]
[368218816,1751064639932,-460.0,0.00019178,2]
[368218818,1751064639943,-460.0,0.00019178,2]
[368218820,1751064639952,-1507.03,0.00019178,2]
[368218822,1751064639962,-460.0,0.00019178,2]
[368218824,1751064639971,-460.0,0.00019178,2]
[368218826,1751064639981,-2960.07,0.00019178,2]
[368218828,1751064639991,-1522.67,0.00019178,2]
[368218830,1751064640000,-460.0,0.00019178,2]
[368218832,1751064640010,-460.0,0.00019178,2]
[368218834,1751064640019,-574.95,0.00019178,2]
[368218836,1751064640028,-615.52,0.00019178,2]
[368218838,1751064640039,-460.0,0.00019178,2]
[368218840,1751064640049,-3449.43,0.00019178,2]
[368218842,1751064640065,-460.0,0.00019178,2]
[368218844,1751064640075,-460.0,0.00019178,2]
[368218845,1751064640085,-460.0,0.00019178,2]
[368218846,1751064640094,-2504.97,0.00019178,2]
[368218847,1751064640104,-663.03,0.00019178,2]
[368218848,1751064640114,-609.79,0.00019178,2]
[368218849,1751064640124,-460.0,0.00019178,2]
[368218850,1751064640134,-460.0,0.00019178,2]
[368218851,1751064640143,-460.0,0.00019178,2]
[368218852,1751064640153,-600.88,0.00019178,2]
[368218853,1751064640163,-500.0,0.00019178,2]
[368218854,1751064640172,-460.0,0.00019178,2]
[368218855,1751064640182,-522.62,0.00019178,2]
[368218856,1751064640191,-460.0,0.00019178,2]
[368218857,1751064640201,-1599.31,0.00019178,2]
[368218858,1751064640211,-460.0,0.00019178,2]
[368218859,1751064640220,-460.0,0.00019178,2]
[368218860,1751064640230,-400.81107327,0.00019178,2]
[368218861,1751064640239,-460.0,0.00019178,2]
[368218862,1751064640248,-460.0,0.00019178,2]
[368218864,1751064640258,-774.12,0.00019178,2]
[368218866,1751064640267,-460.0,0.00019178,2]
[368218868,1751064640276,-460.0,0.00019178,2]
[368218870,1751064640287,-460.0,0.00019178,2]
[368218872,1751064640296,-460.0,0.00019178,2]
[368218874,1751064640305,-460.0,0.00019178,2]
[368218876,1751064640314,-1757.88,0.00019178,2]
[368218878,1751064640324,-460.0,0.00019178,2]
[368218880,1751064640337,-157.02247952,0.00019178,2]
[368218882,1751064640346,-460.0,0.00019178,2]
[368218884,1751064640356,-804.48,0.00019178,2]
[368218886,1751064640365,-460.0,0.00019178,2]
[368218888,1751064640375,-1031.15,0.00019178,2]
[368218890,1751064640384,-705.81,0.00019178,2]
[368218892,1751064640393,-618.97,0.00019178,2]
[368218894,1751064640405,-460.0,0.00019178,2]
[368218896,1751064640417,-2003.53,0.00019178,2]
[368218898,1751064640426,-460.0,0.00019178,2]
[368218900,1751064640435,-460.0,0.00019178,2]
[368218902,1751064640446,-642.76,0.00019178,2]
[368218904,1751064640455,-460.39142013,0.00019178,2]
[368218906,1751064640464,-460.0,0.00019178,2]
[368218908,1751064640474,-460.0,0.00019178,2]
[368218910,1751064640484,-426.08296095,0.00019178,2]
[368218912,1751064640494,-603.02,0.00019178,2]
[368218915,1751064640503,-460.0,0.00019178,2]
[368218916,1751064640513,-460.0,0.00019178,2]
[368218919,1751064640523,-460.0,0.00019178,2]
[368218920,1751064640532,-460.0,0.00019178,2]
[368218922,1751064640542,-460.0,0.00019178,2]
[368218924,1751064640551,-1208.59,0.00019178,2]
[368218926,1751064640560,-460.0,0.00019178,2]
[368218928,1751064640569,-587.88164127,0.00019178,2]
[368218930,1751064640583,-520.9462463,0.00019178,2]
[368218933,1751064640593,-2374.63,0.00019178,2]
[368218935,1751064640603,-549.26166299,0.00019178,2]
[368218936,1751064640612,-460.0,0.00019178,2]
[368218938,1751064640622,-460.0,0.00019178,2]
[368218941,1751064640632,-460.0,0.00019178,2]
[368218943,1751064640642,-460.0,0.00019178,2]
[368218945,1751064640651,-460.0,0.00019178,2]
[368218947,1751064640661,-618.67,0.00019178,2]
[368218949,1751064640670,-460.0,0.00019178,2]
[368218951,1751064640679,-1814.18,0.00019178,2]
[368218953,1751064640688,-336.57959495,0.00019178,2]
[368218955,1751064640698,-743.44,0.00019178,2]
[368218957,1751064640708,-460.0,0.00019178,2]
[368218959,1751064640717,-460.0,0.00019178,2]
[368218960,1751064640727,-953.86,0.00019178,2]
[368218963,1751064640736,-460.0,0.00019178,2]
[368218965,1751064640746,-3170.11,0.00019178,2]
[368218967,1751064640755,-460.0,0.00019178,2]
[368218969,1751064640764,-1277.69,0.00019178,2]
[368218970,1751064640774,-460.0,0.00019178,2]
[368218973,1751064640783,-460.0,0.00019178,2]
[368218974,1751064640792,-579.61225319,0.00019178,2]
[368218976,1751064640802,-460.0,0.00019178,2]
[368218979,1751064640812,-460.0,0.00019178,2]
[368218980,1751064640821,-460.0,0.00019178,2]
[368218982,1751064640830,-460.0,0.00019178,2]
[368218984,1751064640840,-460.0,0.00019178,2]
[368218986,1751064640849,-460.0,0.00019178,2]
[368218989,1751064640861,-4659.02,0.00019178,2]
[368218991,1751064640870,-460.0,0.00019178,2]
[368218993,1751064640880,-460.0,0.00019178,2]
[368218994,1751064640889,-460.0,0.00019178,2]
[368218997,1751064640899,-726.25,0.00019178,2]
[368218999,1751064640908,-693.04,0.00019178,2]
[368219001,1751064640918,-460.0,0.00019178,2]
[368219003,1751064640927,-4810.65,0.00019178,2]
[368219005,1751064640936,-460.0,0.00019178,2]
[368219007,1751064640947,-460.0,0.00019178,2]
[368219009,1751064640957,-460.0,0.00019178,2]
[368219011,1751064640967,-497.34,0.00019178,2]
[368219013,1751064640976,-525.29,0.00019178,2]
[368219015,1751064640986,-460.0,0.00019178,2]
[368219017,1751064640995,-460.0,0.00019178,2]
[368219019,1751064641005,-3820.61,0.00019178,2]
[368219021,1751064641014,-1590.24,0.00019178,2]
[368219023,1751064641024,-460.0,0.00019178,2]
[368219024,1751064641034,-175.182416,0.00019178,2]
[368219026,1751064641046,-1903.72187749,0.00019352,2]
[368219029,1751064641055,-460.0,0.00019452,2]
[368219030,1751064641065,-460.0,0.00019452,2]
[368219033,1751064641075,-460.0,0.00019452,2]
[368219035,1751064641085,-460.0,0.00019452,2]
[368219037,1751064641094,-460.0,0.00019452,2]
[368219038,1751064641103,-460.0,0.00019452,2]
[368219040,1751064641113,-460.0,0.00019452,2]
[368219043,1751064641123,-460.0,0.00019452,2]
[368219044,1751064641132,-460.0,0.00019452,2]
[368219047,1751064641142,-460.0,0.00019452,2]
[368219049,1751064641152,-460.0,0.00019452,2]
[368219051,1751064641161,-264.92619751,0.00019452,2]
[368219052,1751064641170,-460.0,0.00019452,2]
[368219055,1751064641181,-460.0,0.00019452,2]
[368219056,1751064641191,-460.0,0.00019452,2]
[368219059,1751064641200,-460.0,0.00019452,2]
[368219061,1751064641210,-864.54,0.00019452,2]
[368219062,1751064641219,-460.0,0.00019452,2]
[368219065,1751064641229,-460.0,0.00019452,2]
[368219067,1751064641238,-460.0,0.00019452,2]
[368219068,1751064641247,-460.0,0.00019452,2]
[368219070,1751064641257,-460.0,0.00019452,2]
[368219073,1751064641266,-165.17548333,0.00019452,2]
[368219075,1751064641275,-460.0,0.00019452,2]
[368219077,1751064641285,-525.94,0.00019452,2]
[368219079,1751064641295,-460.0,0.00019452,2]
[368219081,1751064641304,-460.0,0.00019452,2]
[368219083,1751064641319,-460.0,0.00019452,2]
[368219085,1751064641331,-460.0,0.00019452,2]
[368219087,1751064641341,-460.0,0.00019452,2]
[368219089,1751064641351,-460.0,0.00019452,2]
[368219091,1751064641361,-460.0,0.00019452,2]
[368219093,1751064641371,-460.0,0.00019452,2]
[368219095,1751064641380,-341.21598017,0.00019452,2]
[368219097,1751064641389,-460.0,0.00019452,2]
[368219099,1751064641398,-460.0,0.00019452,2]
[368219101,1751064641407,-539.60067752,0.00019452,2]
[368219103,1751064641416,-460.0,0.00019452,2]
[368219105,1751064641426,-460.0,0.00019452,2]
[368219108,1751064641438,-748.87,0.00019452,2]
[368219110,1751064641447,-460.0,0.00019452,2]
[368219112,1751064641457,-460.0,0.00019452,2]
[368219114,1751064641466,-460.0,0.00019452,2]
[368219115,1751064641477,-460.0,0.00019452,2]
[368219117,1751064641487,-460.0,0.00019452,2]
[368219119,1751064641496,-460.0,0.00019452,2]
[368219121,1751064641505,-460.0,0.00019452,2]
[368219123,1751064641515,-495.05,0.00019452,2]
[368219125,1751064641525,-460.0,0.00019452,2]
[368219127,1751064641535,-460.0,0.00019452,2]
[368219130,1751064641545,-220.2005835,0.00019452,2]
[368219131,1751064641555,-460.0,0.00019452,2]
[368219133,1751064641564,-460.0,0.00019452,2]
[368219135,1751064641575,-460.0,0.00019452,2]
[368219137,1751064641585,-460.0,0.00019452,2]
[368219140,1751064641595,-460.0,0.00019452,2]
[368219142,1751064641605,-460.0,0.00019452,2]
[368219143,1751064641614,-460.0,0.00019452,2]
[368219145,1751064641624,-460.0,0.00019452,2]
[368219148,1751064641634,-460.0,0.00019452,2]
[368219150,1751064641644,-460.0,0.00019452,2]
[368219152,1751064641653,-460.0,0.00019452,2]
[368219154,1751064641663,-478.46342209,0.00019452,2]
[368219155,1751064641673,-460.0,0.00019452,2]
[368219158,1751064641683,-543.96932528,0.00019452,2]
[368219159,1751064641693,-1035.6,0.00019452,2]
[368219162,1751064641703,-2171.83,0.00019452,2]
[368219164,1751064641712,-386.28,0.00019452,2]
[368219165,1751064641722,-460.0,0.00019452,2]
[368219168,1751064641731,-460.0,0.00019452,2]
[368219170,1751064641741,-1424.5,0.00019452,2]
[368219172,1751064641750,-753.26,0.00019452,2]
[368219174,1751064641760,-460.0,0.00019452,2]
[368219176,1751064641769,-367.42878218,0.00019452,2]
[368219178,1751064641780,-460.0,0.00019452,2]
[368219180,1751064641790,-460.0,0.00019452,2]
[368219181,1751064641799,-541.17,0.00019452,2]
[368219184,1751064641809,-563.13,0.00019452,2]
[368219186,1751064641818,-460.0,0.00019452,2]
[368219188,1751064641828,-766.03,0.00019452,2]
[368219190,1751064641838,-458.74,0.00019452,2]
[368219191,1751064641847,-520.65,0.00019452,2]
[368219194,1751064641857,-460.0,0.00019452,2]
[368219196,1751064641867,-562.4,0.00019452,2]
[368219197,1751064641876,-226.12,0.00019452,2]
[368219200,1751064641885,-949.08,0.00019452,2]
[368219202,1751064641895,-460.0,0.00019452,2]
[368219204,1751064641905,-2997.11,0.00019452,2]
[368219206,1751064641914,-708.91,0.00019452,2]
[368219208,1751064641924,-460.0,0.00019452,2]
[368219210,1751064641933,-460.0,0.00019452,2]
[368219212,1751064641943,-460.0,0.00019452,2]
[368219214,1751064641952,-460.0,0.00019452,2]
[368219216,1751064641962,-1507.03,0.00019452,2]
[368219217,1751064641971,-2960.07,0.00019452,2]
[368219219,1751064641980,-1522.67,0.00019452,2]
[368219221,1751064641990,-460.0,0.00019452,2]
[368219223,1751064641999,-460.0,0.00019452,2]
[368219226,1751064642010,-574.95,0.00019452,2]
[368219228,1751064642019,-615.52,0.00019452,2]
[368219230,1751064642028,-3449.43,0.00019452,2]
[368219232,1751064642038,-460.0,0.00019452,2]
[368219233,1751064642047,-501.48619889,0.00019452,2]
[368219236,1751064642057,-2504.97,0.00019452,2]
[368219238,1751064642067,-663.03,0.00019452,2]
[368219239,1751064642076,-609.79,0.00019452,2]
[368219242,1751064642085,-460.0,0.00019452,2]
[368219243,1751064642095,-460.0,0.00019452,2]
[368219245,1751064642104,-600.88,0.00019452,2]
[368219247,1751064642113,-522.62,0.00019452,2]
[368219249,1751064642123,-1599.31,0.00019452,2]
[368219252,1751064642132,-460.0,0.00019452,2]
[368219253,1751064642141,-318.66381283,0.00019452,2]
[368219255,1751064642150,-460.0,0.00019452,2]
[368219258,1751064642160,-500.0,0.00019452,2]
[368219259,1751064642170,-774.12,0.00019452,2]
[368219262,1751064642180,-460.0,0.00019452,2]
[368219264,1751064642189,-460.0,0.00019452,2]
[368219265,1751064642199,-460.0,0.00019452,2]
[368219268,1751064642208,-1757.88,0.00019452,2]
[368219269,1751064642218,-460.0,0.00019452,2]
[368219271,1751064642227,-460.0,0.00019452,2]
[368219273,1751064642237,-804.48,0.00019452,2]
[368219275,1751064642246,-460.0,0.00019452,2]
[368219277,1751064642256,-1031.15,0.00019452,2]
[368219279,1751064642265,-705.81,0.00019452,2]
[368219281,1751064642274,-618.97,0.00019452,2]
[368219283,1751064642283,-2003.53,0.00019452,2]
[368219285,1751064642293,-460.0,0.00019452,2]
[368219287,1751064642302,-460.0,0.00019452,2]
[368219289,1751064642311,-642.76,0.00019452,2]
[368219292,1751064642322,-603.02,0.00019452,2]
[368219294,1751064642337,-460.0,0.00019452,2]
[368219295,1751064642347,-460.0,0.00019452,2]
[368219298,1751064642357,-460.0,0.00019452,2]
[368219300,1751064642366,-1208.59,0.00019452,2]
[368219302,1751064642376,-2374.63,0.00019452,2]
[368219304,1751064642386,-460.0,0.00019452,2]
[368219306,1751064642395,-375.743074,0.00019452,2]
[368219308,1751064642405,-460.0,0.00019452,2]
[368219310,1751064642415,-460.0,0.00019452,2]
[368219333,1751064642581,-618.67,0.00019452,2]
[368219335,1751064642592,-460.0,0.00019452,2]
[368219337,1751064642602,-1814.18,0.00019452,2]
[368219339,1751064642611,-743.44,0.00019452,2]
[368219342,1751064642621,-953.86,0.00019452,2]
[368219344,1751064642631,-460.0,0.00019452,2]
[368219346,1751064642640,-3170.11,0.00019452,2]
[368219347,1751064642649,-460.0,0.00019452,2]
[368219348,1751064642658,-1277.69,0.00019452,2]
[368219349,1751064642668,-460.0,0.00019452,2]
[368219350,1751064642677,-460.0,0.00019452,2]
[368219351,1751064642687,-460.0,0.00019452,2]
[368219353,1751064642696,-460.0,0.00019452,2]
[368219355,1751064642706,-460.0,0.00019452,2]
[368219357,1751064642715,-4659.02,0.00019452,2]
[368219359,1751064642725,-460.0,0.00019452,2]
[368219361,1751064642736,-460.0,0.00019452,2]
[368219363,1751064642745,-460.0,0.00019452,2]
[368219366,1751064642754,-726.25,0.00019452,2]
[368219368,1751064642763,-693.04,0.00019452,2]
[368219370,1751064642773,-460.0,0.00019452,2]
[368219372,1751064642782,-4810.65,0.00019452,2]
[368219374,1751064642792,-500.0,0.00019452,2]
[368219375,1751064642801,-497.34,0.00019452,2]
[368219377,1751064642811,-460.0,0.00019452,2]
[368219380,1751064642822,-525.29,0.00019452,2]
[368219382,1751064642831,-460.0,0.00019452,2]
[368219384,1751064642841,-3820.61,0.00019452,2]
[368219386,1751064642850,-1590.24,0.00019452,2]
[368219388,1751064642860,-465.13658393,0.00019577,2]
[368219390,1751064642870,-304.88004104,0.000197,2]
[368219392,1751064642879,-500.0,0.000197,2]
[368219394,1751064642889,-500.0,0.000197,2]
[368219396,1751064642899,-500.0,0.00019711,2]
[368219398,1751064642908,-500.0,0.00019714,2]
[368219400,1751064642917,-500.0,0.00019714,2]
[368219402,1751064642927,-500.0,0.00019717,2]
[368219404,1751064642936,-500.0,0.00019717,2]
[368219406,1751064642947,-500.0,0.00019717,2]
[368219408,1751064642957,-500.8586686,0.00019717,2]
[368219410,1751064642966,-500.0,0.00019717,2]
[368219412,1751064642976,-500.0,0.00019717,2]
[368219414,1751064642985,-500.0,0.00019717,2]
[368219416,1751064642995,-500.12746129,0.00019717,2]
[368219418,1751064643004,-500.0,0.00019717,2]
[368219420,1751064643014,-425.29852011,0.00019726,2]
[368219422,1751064643023,-460.0,0.00019726,2]
[368219424,1751064643033,-460.0,0.00019726,2]
[368219426,1751064643043,-460.0,0.00019726,2]
[368219428,1751064643052,-460.0,0.00019726,2]
[368219430,1751064643061,-460.0,0.00019726,2]
[368219432,1751064643071,-460.0,0.00019726,2]
[368219434,1751064643080,-460.0,0.00019726,2]
[368219436,1751064643089,-428.02,0.00019726,2]
[368219437,1751064643099,-460.0,0.00019726,2]
[368219438,1751064643108,-460.0,0.00019726,2]
[368219439,1751064643118,-864.54,0.00019726,2]
[368219440,1751064643127,-460.0,0.00019726,2]
[368219441,1751064643137,-460.0,0.00019726,2]
[368219442,1751064643146,-460.0,0.00019726,2]
[368219443,1751064643156,-460.0,0.00019726,2]
[368219444,1751064643165,-460.0,0.00019726,2]
[368219445,1751064643175,-460.0,0.00019726,2]
[368219446,1751064643184,-525.94,0.00019726,2]
[368219447,1751064643193,-460.0,0.00019726,2]
[368219450,1751064643203,-460.0,0.00019726,2]
[368219452,1751064643212,-460.0,0.00019726,2]
[368219454,1751064643221,-460.0,0.00019726,2]
[368219456,1751064643230,-460.0,0.00019726,2]
[368219458,1751064643240,-460.0,0.00019726,2]
[368219460,1751064643249,-460.0,0.00019726,2]
[368219462,1751064643259,-460.0,0.00019726,2]
[368219464,1751064643268,-492.31030742,0.00019726,2]
[368219466,1751064643279,-460.0,0.00019726,2]
[368219468,1751064643288,-460.0,0.00019726,2]
[368219471,1751064643298,-460.0,0.00019726,2]
[368219473,1751064643307,-748.87,0.00019726,2]
[368219475,1751064643317,-460.0,0.00019726,2]
[368219477,1751064643329,-460.0,0.00019726,2]
[368219479,1751064643339,-460.0,0.00019726,2]
[368219481,1751064643349,-460.0,0.00019726,2]
[368219483,1751064643358,-460.0,0.00019726,2]
[368219485,1751064643368,-495.05,0.00019726,2]
[368219487,1751064643377,-460.0,0.00019726,2]
[368219489,1751064643387,-460.0,0.00019726,2]
[368219491,1751064643396,-460.0,0.00019726,2]
[368219493,1751064643407,-460.0,0.00019726,2]
[368219495,1751064643416,-460.0,0.00019726,2]
[368219497,1751064643427,-460.0,0.00019726,2]
[368219499,1751064643436,-460.0,0.00019726,2]
[368219501,1751064643445,-460.0,0.00019726,2]
[368219503,1751064643455,-460.0,0.00019726,2]
[368219504,1751064643464,-1035.6,0.00019726,2]
[368219505,1751064643473,-2171.83,0.00019726,2]
[368219506,1751064643482,-460.0,0.00019726,2]
[368219507,1751064643491,-1424.5,0.00019726,2]
[368219508,1751064643500,-753.26,0.00019726,2]
[368219509,1751064643510,-460.0,0.00019726,2]